[Event "*** Titled Tuesday Blitz"]
[Site "Chess.com"]
[Date "2018.07.03"]
[Round "4"]
[White "dreamist"]
[Black "Bigfish1995"]
[Result "1-0"]
[WhiteElo "2602"]
[BlackElo "2871"]
[TimeControl "180+2"]
[EndTime "13:53:24 PDT"]
[Termination "dreamist won on time"]

1. c4 {[%clk 0:02:47.7]} 1... e6 {[%clk 0:02:57.4]} 2. Nc3 {[%clk 0:02:47.7]}
2... d5 {[%clk 0:02:58.4]} 3. d4 {[%clk 0:02:48.8]} 3... Be7 {[%clk 0:02:58.5]}
4. Nf3 {[%clk 0:02:48.4]} 4... Nf6 {[%clk 0:02:58.7]} 5. cxd5 {[%clk 0:02:48.6]}
5... exd5 {[%clk 0:02:59.4]} 6. Bg5 {[%clk 0:02:49]} 6... O-O {[%clk 0:02:55.9]}
7. e3 {[%clk 0:02:49.8]} 7... c6 {[%clk 0:02:56.7]} 8. Bd3 {[%clk 0:02:50]} 8...
Nbd7 {[%clk 0:02:52.6]} 9. h3 {[%clk 0:02:48.4]} 9... Nb6 {[%clk 0:02:51.4]} 10.
Rc1 {[%clk 0:02:41.3]} 10... Ne8 {[%clk 0:02:51.6]} 11. Bxe7 {[%clk 0:02:41.2]}
11... Qxe7 {[%clk 0:02:52.4]} 12. O-O {[%clk 0:02:42.5]} 12... Nd6 {[%clk
0:02:52.6]} 13. Re1 {[%clk 0:02:43]} 13... Be6 {[%clk 0:02:50.3]} 14. Na4 {[%clk
0:02:41.4]} 14... Rae8 {[%clk 0:02:43.2]} 15. Nc5 {[%clk 0:02:40.8]} 15... Bc8
{[%clk 0:02:42.1]} 16. Qc2 {[%clk 0:02:40.1]} 16... g6 {[%clk 0:02:41.6]} 17. b3
{[%clk 0:02:31.1]} 17... Nd7 {[%clk 0:02:27.7]} 18. b4 {[%clk 0:02:29.2]} 18...
Nb6 {[%clk 0:02:23.2]} 19. Nd2 {[%clk 0:02:26.7]} 19... Qg5 {[%clk 0:02:22]} 20.
Nf3 {[%clk 0:02:24.9]} 20... Qh5 {[%clk 0:02:22.1]} 21. Nd2 {[%clk 0:02:23.7]}
21... Nd7 {[%clk 0:02:06.3]} 22. Qd1 {[%clk 0:02:19.2]} 22... Qg5 {[%clk
0:01:55.2]} 23. Nf3 {[%clk 0:02:19.7]} 23... Qe7 {[%clk 0:01:55.7]} 24. Qc2
{[%clk 0:02:19.4]} 24... Nf6 {[%clk 0:01:54.4]} 25. Ne5 {[%clk 0:02:01.8]} 25...
Nfe4 {[%clk 0:01:55.1]} 26. Nxe4 {[%clk 0:01:57.1]} 26... Nxe4 {[%clk
0:01:46.4]} 27. Bxe4 {[%clk 0:01:55.3]} 27... dxe4 {[%clk 0:01:47.3]} 28. Qc5
{[%clk 0:01:56.1]} 28... Be6 {[%clk 0:01:44]} 29. Qxe7 {[%clk 0:01:37.1]} 29...
Rxe7 {[%clk 0:01:40.5]} 30. a4 {[%clk 0:01:38.7]} 30... Rd8 {[%clk 0:01:34.1]}
31. Nc4 {[%clk 0:01:25.6]} 31... Bd5 {[%clk 0:01:29.6]} 32. Na5 {[%clk
0:01:20.5]} 32... f5 {[%clk 0:01:15.8]} 33. b5 {[%clk 0:01:16.7]} 33... cxb5
{[%clk 0:01:16.8]} 34. axb5 {[%clk 0:01:17.2]} 34... Kf7 {[%clk 0:01:18]} 35.
Rc3 {[%clk 0:01:16.2]} 35... Ke6 {[%clk 0:01:18.5]} 36. Rec1 {[%clk 0:01:16.5]}
36... g5 {[%clk 0:01:10.4]} 37. Nc4 {[%clk 0:01:13.3]} 37... f4 {[%clk
0:01:05.1]} 38. Ne5 {[%clk 0:01:12.6]} 38... f3 {[%clk 0:00:51.5]} 39. gxf3
{[%clk 0:01:08.4]} 39... exf3 {[%clk 0:00:52.3]} 40. Kh2 {[%clk 0:01:09.9]}
40... h5 {[%clk 0:00:46.5]} 41. Rc7 {[%clk 0:01:01.9]} 41... h4 {[%clk
0:00:39.9]} 42. Rxe7+ {[%clk 0:00:45.2]} 42... Kxe7 {[%clk 0:00:40.7]} 43. e4
{[%clk 0:00:43]} 43... Bb3 {[%clk 0:00:11.7]} 44. Nxf3 {[%clk 0:00:35.3]} 44...
Ba4 {[%clk 0:00:11.7]} 45. Rc5 {[%clk 0:00:31.5]} 45... Rf8 {[%clk 0:00:10.5]}
46. Kg2 {[%clk 0:00:29.9]} 46... b6 {[%clk 0:00:11.4]} 47. Rxg5 {[%clk
0:00:27.4]} 47... Kd6 {[%clk 0:00:11.7]} 48. Rd5+ {[%clk 0:00:26.6]} 48... Kc7
{[%clk 0:00:11.9]} 49. Rh5 {[%clk 0:00:18.9]} 49... Rf4 {[%clk 0:00:10.1]} 50.
Rh7+ {[%clk 0:00:17.3]} 50... Kb8 {[%clk 0:00:10.8]} 51. Re7 {[%clk 0:00:18.1]}
51... Bxb5 {[%clk 0:00:11.4]} 52. d5 {[%clk 0:00:18.7]} 52... a5 {[%clk
0:00:12.5]} 53. Nd4 {[%clk 0:00:19.3]} 53... Ba4 {[%clk 0:00:12.7]} 54. f3
{[%clk 0:00:18.1]} 54... Rf8 {[%clk 0:00:11.4]} 55. Nc6+ {[%clk 0:00:16.7]}
55... Bxc6 {[%clk 0:00:11.6]} 56. dxc6 {[%clk 0:00:17.9]} 56... Ka8 {[%clk
0:00:11.7]} 57. f4 {[%clk 0:00:12.6]} 57... a4 {[%clk 0:00:08.3]} 58. Rd7 {[%clk
0:00:12.6]} 58... b5 {[%clk 0:00:07]} 59. c7 {[%clk 0:00:13]} 59... Rc8 {[%clk
0:00:06.7]} 60. Rd5 {[%clk 0:00:13.9]} 60... Rxc7 {[%clk 0:00:07.3]} 61. Rxb5
{[%clk 0:00:14.8]} 61... a3 {[%clk 0:00:08.7]} 62. Rb1 {[%clk 0:00:14.4]} 62...
Rc3 {[%clk 0:00:09.7]} 63. f5 {[%clk 0:00:14]} 63... Rg3+ {[%clk 0:00:10.6]} 64.
Kf2 {[%clk 0:00:12]} 64... Rxh3 {[%clk 0:00:05]} 65. f6 {[%clk 0:00:13]} 65...
Rh2+ {[%clk 0:00:05.8]} 66. Ke3 {[%clk 0:00:13.4]} 66... Rb2 {[%clk 0:00:06.4]}
67. Ra1 {[%clk 0:00:12.5]} 67... Rb3+ {[%clk 0:00:06]} 68. Kf4 {[%clk
0:00:13.7]} 1-0

[Event "*** Titled Tuesday Blitz"]
[Site "Chess.com"]
[Date "2018.07.03"]
[Round "4"]
[White "Genghis_K"]
[Black "josiwales"]
[Result "1-0"]
[WhiteElo "2709"]
[BlackElo "2506"]
[TimeControl "180+2"]
[EndTime "13:53:32 PDT"]
[Termination "Genghis_K won by resignation"]

1. e4 {[%clk 0:02:15]} 1... c5 {[%clk 0:03:00.3]} 2. Nf3 {[%clk 0:02:15.7]} 2...
Nc6 {[%clk 0:03:01.3]} 3. Nc3 {[%clk 0:02:15.6]} 3... Nf6 {[%clk 0:02:59.6]} 4.
d4 {[%clk 0:02:15.6]} 4... cxd4 {[%clk 0:03:00.4]} 5. Nxd4 {[%clk 0:02:17.2]}
5... e5 {[%clk 0:03:02]} 6. Ndb5 {[%clk 0:02:18.7]} 6... d6 {[%clk 0:03:03.3]}
7. Bg5 {[%clk 0:02:20.2]} 7... a6 {[%clk 0:03:04.6]} 8. Na3 {[%clk 0:02:21.5]}
8... b5 {[%clk 0:03:05.8]} 9. Nd5 {[%clk 0:02:22.3]} 9... Be7 {[%clk 0:03:06.9]}
10. Bxf6 {[%clk 0:02:23.6]} 10... Bxf6 {[%clk 0:03:08.2]} 11. c4 {[%clk
0:02:25.1]} 11... Nd4 {[%clk 0:03:09.3]} 12. cxb5 {[%clk 0:02:13.5]} 12... Be6
{[%clk 0:03:09.2]} 13. Bc4 {[%clk 0:02:13.7]} 13... axb5 {[%clk 0:03:09.6]} 14.
Nxb5 {[%clk 0:02:01.2]} 14... Bxd5 {[%clk 0:02:53.9]} 15. exd5 {[%clk 0:01:57]}
15... Qa5+ {[%clk 0:02:46.3]} 16. Nc3 {[%clk 0:01:52.8]} 16... Rc8 {[%clk
0:02:23.5]} 17. Bd3 {[%clk 0:01:35.8]} 17... O-O {[%clk 0:01:28.7]} 18. O-O
{[%clk 0:01:34.8]} 18... Qb4 {[%clk 0:01:28.3]} 19. Qd2 {[%clk 0:01:27.9]} 19...
Rc7 {[%clk 0:01:20.5]} 20. Ne4 {[%clk 0:01:20.8]} 20... Qxd2 {[%clk 0:01:18.2]}
21. Nxd2 {[%clk 0:01:22.3]} 21... Rb8 {[%clk 0:01:19.7]} 22. b3 {[%clk
0:01:19.8]} 22... g6 {[%clk 0:01:17]} 23. Rfc1 {[%clk 0:01:11.3]} 23... Ra7
{[%clk 0:01:17.2]} 24. Bf1 {[%clk 0:00:57.3]} 24... Kf8 {[%clk 0:00:49.1]} 25.
a4 {[%clk 0:00:23.2]} 25... Bg5 {[%clk 0:00:46.5]} 26. Rd1 {[%clk 0:00:19.7]}
26... Bxd2 {[%clk 0:00:46.7]} 27. Rxd2 {[%clk 0:00:21.6]} 27... Nxb3 {[%clk
0:00:48]} 28. Rb2 {[%clk 0:00:23.1]} 28... Rbb7 {[%clk 0:00:41.2]} 29. Rab1
{[%clk 0:00:21.6]} 29... Nc5 {[%clk 0:00:38.8]} 30. Rxb7 {[%clk 0:00:14.1]}
30... Rxb7 {[%clk 0:00:39.8]} 31. Ra1 {[%clk 0:00:14.7]} 31... Ra7 {[%clk
0:00:38.3]} 32. Bb5 {[%clk 0:00:13.6]} 32... Ke7 {[%clk 0:00:34.5]} 33. f3
{[%clk 0:00:13.5]} 33... f5 {[%clk 0:00:35.1]} 34. Kf2 {[%clk 0:00:14.9]} 34...
Kf6 {[%clk 0:00:26.4]} 35. Ra3 {[%clk 0:00:14.9]} 35... e4 {[%clk 0:00:26]} 36.
f4 {[%clk 0:00:15.3]} 36... h6 {[%clk 0:00:25.2]} 37. Ke3 {[%clk 0:00:16.3]}
37... g5 {[%clk 0:00:26]} 38. g3 {[%clk 0:00:17.1]} 38... h5 {[%clk 0:00:25.6]}
39. a5 {[%clk 0:00:16]} 39... h4 {[%clk 0:00:23.9]} 40. a6 {[%clk 0:00:16.8]}
40... hxg3 {[%clk 0:00:23.7]} 41. hxg3 {[%clk 0:00:18.2]} 41... gxf4+ {[%clk
0:00:24.9]} 42. gxf4 {[%clk 0:00:17.5]} 42... Rh7 {[%clk 0:00:25]} 43. Kd4
{[%clk 0:00:15.1]} 43... Ra7 {[%clk 0:00:14.3]} 44. Be2 {[%clk 0:00:13.8]} 44...
Ke7 {[%clk 0:00:10.9]} 45. Rh3 {[%clk 0:00:12]} 45... Kd8 {[%clk 0:00:11.1]} 46.
Rh5 {[%clk 0:00:07]} 46... Nxa6 {[%clk 0:00:10.8]} 47. Rxf5 {[%clk 0:00:08]}
47... Nc7 {[%clk 0:00:11.2]} 48. Kxe4 {[%clk 0:00:06.7]} 48... Ra4+ {[%clk
0:00:10.3]} 49. Ke3 {[%clk 0:00:08.2]} 49... Ke7 {[%clk 0:00:11.4]} 50. Bf3
{[%clk 0:00:08.9]} 50... Ra3+ {[%clk 0:00:12.2]} 51. Kf2 {[%clk 0:00:10.3]}
51... Nb5 {[%clk 0:00:13.5]} 52. Rh5 {[%clk 0:00:11.1]} 52... Nd4 {[%clk
0:00:14.4]} 53. Be4 {[%clk 0:00:12.4]} 53... Ra2+ {[%clk 0:00:14.8]} 54. Ke3
{[%clk 0:00:13.7]} 54... Nb5 {[%clk 0:00:15.8]} 55. Rh7+ {[%clk 0:00:15.2]}
55... Kf6 {[%clk 0:00:17]} 56. Rh6+ {[%clk 0:00:15.7]} 56... Ke7 {[%clk
0:00:18.2]} 57. Re6+ {[%clk 0:00:17.2]} 57... Kd7 {[%clk 0:00:17.7]} 58. f5
{[%clk 0:00:17.4]} 58... Nc3 {[%clk 0:00:17.1]} 59. Bf3 {[%clk 0:00:18.3]} 59...
Ra3 {[%clk 0:00:16.7]} 60. Kf4 {[%clk 0:00:19.2]} 60... Ra4+ {[%clk 0:00:15.1]}
61. Kg5 {[%clk 0:00:20.4]} 61... Rd4 {[%clk 0:00:16.1]} 62. Re1 {[%clk
0:00:11.6]} 62... Nxd5 {[%clk 0:00:16.1]} 63. Bxd5 {[%clk 0:00:05.2]} 63... Rxd5
{[%clk 0:00:17]} 64. Kg6 {[%clk 0:00:06.8]} 64... Rd2 {[%clk 0:00:16.5]} 65. f6
{[%clk 0:00:06.1]} 65... Rg2+ {[%clk 0:00:17.5]} 66. Kf7 {[%clk 0:00:07.4]}
66... d5 {[%clk 0:00:16.9]} 67. Kf8 {[%clk 0:00:06.1]} 67... d4 {[%clk
0:00:15.5]} 68. Rd1 {[%clk 0:00:07.1]} 68... Ke6 {[%clk 0:00:16]} 69. f7 {[%clk
0:00:07.1]} 69... Kd7 {[%clk 0:00:10.5]} 70. Rxd4+ {[%clk 0:00:07.7]} 70... Ke6
{[%clk 0:00:11.7]} 71. Ke8 {[%clk 0:00:07.7]} 71... Ra2 {[%clk 0:00:09.8]} 72.
f8=Q {[%clk 0:00:08.5]} 1-0

[Event "*** Titled Tuesday Blitz"]
[Site "Chess.com"]
[Date "2018.07.03"]
[Round "4"]
[White "pedromartinez91"]
[Black "ahmadzada13"]
[Result "1-0"]
[WhiteElo "2424"]
[BlackElo "2494"]
[TimeControl "180+2"]
[EndTime "13:54:59 PDT"]
[Termination "pedromartinez91 won by resignation"]

1. Nf3 {[%clk 0:03:01.9]} 1... c5 {[%clk 0:03:00.9]} 2. c4 {[%clk 0:03:02.1]}
2... Nf6 {[%clk 0:02:59.6]} 3. Nc3 {[%clk 0:02:59.3]} 3... b6 {[%clk 0:02:59.8]}
4. g3 {[%clk 0:02:58.7]} 4... Bb7 {[%clk 0:03:00.6]} 5. Bg2 {[%clk 0:02:58.9]}
5... e6 {[%clk 0:02:58.5]} 6. O-O {[%clk 0:02:58.8]} 6... Be7 {[%clk 0:02:55.8]}
7. d4 {[%clk 0:02:58.6]} 7... cxd4 {[%clk 0:02:56]} 8. Qxd4 {[%clk 0:03:00.5]}
8... O-O {[%clk 0:02:52.9]} 9. Rd1 {[%clk 0:03:01.1]} 9... d6 {[%clk 0:02:49.9]}
10. b3 {[%clk 0:03:00.5]} 10... Nbd7 {[%clk 0:02:48.7]} 11. Qe3 {[%clk
0:03:01.4]} 11... a6 {[%clk 0:02:36.9]} 12. Ba3 {[%clk 0:02:59.3]} 12... Nc5
{[%clk 0:02:37.3]} 13. Nd4 {[%clk 0:02:59.7]} 13... Bxg2 {[%clk 0:02:35.5]} 14.
Kxg2 {[%clk 0:03:01.6]} 14... Qc7 {[%clk 0:02:33.3]} 15. Qf3 {[%clk 0:03:02.2]}
15... Rac8 {[%clk 0:02:19.7]} 16. Rac1 {[%clk 0:02:58.8]} 16... Rfd8 {[%clk
0:02:16.3]} 17. e3 {[%clk 0:02:46.3]} 17... Nfd7 {[%clk 0:02:11.8]} 18. Qe2
{[%clk 0:02:41.5]} 18... Ne5 {[%clk 0:02:08.6]} 19. f4 {[%clk 0:02:41.6]} 19...
Qb7+ {[%clk 0:02:07.9]} 20. Kg1 {[%clk 0:02:39.8]} 20... Nc6 {[%clk 0:01:53.1]}
21. Qg2 {[%clk 0:02:30.5]} 21... Bf6 {[%clk 0:01:11.6]} 22. Nxc6 {[%clk
0:02:25.1]} 22... Qxc6 {[%clk 0:01:10]} 23. Qxc6 {[%clk 0:02:25.2]} 23... Rxc6
{[%clk 0:01:11.4]} 24. Bxc5 {[%clk 0:02:26]} 24... bxc5 {[%clk 0:00:56.9]} 25.
Ne4 {[%clk 0:02:22.5]} 25... Be7 {[%clk 0:00:57.7]} 26. Rd3 {[%clk 0:02:23]}
26... g6 {[%clk 0:00:53.5]} 27. Rcd1 {[%clk 0:02:23.4]} 27... f5 {[%clk
0:00:51.7]} 28. Nc3 {[%clk 0:02:23.2]} 28... Bf6 {[%clk 0:00:51]} 29. Na4 {[%clk
0:02:18.8]} 29... Kf7 {[%clk 0:00:50]} 30. Kf2 {[%clk 0:02:19.7]} 30... Ke7
{[%clk 0:00:50.9]} 31. Kf3 {[%clk 0:02:20.8]} 31... Rb8 {[%clk 0:00:49.7]} 32.
h3 {[%clk 0:02:16.1]} 32... h5 {[%clk 0:00:49.4]} 33. R3d2 {[%clk 0:02:13.8]}
33... Rg8 {[%clk 0:00:44.7]} 34. h4 {[%clk 0:02:13.9]} 34... Rb8 {[%clk
0:00:43.6]} 35. Ke2 {[%clk 0:02:12]} 35... Rb4 {[%clk 0:00:43.1]} 36. Kd3 {[%clk
0:02:10.7]} 36... d5 {[%clk 0:00:38.5]} 37. cxd5 {[%clk 0:02:09.5]} 37... exd5
{[%clk 0:00:29.3]} 38. Ke2 {[%clk 0:02:10]} 38... d4 {[%clk 0:00:21.5]} 39. Nb2
{[%clk 0:01:55.6]} 39... dxe3 {[%clk 0:00:21.4]} 40. Rd7+ {[%clk 0:01:55.4]}
40... Ke6 {[%clk 0:00:18.5]} 41. Nc4 {[%clk 0:01:51.1]} 41... Bd4 {[%clk
0:00:15.4]} 42. Rd8 {[%clk 0:01:48.4]} 42... Ke7 {[%clk 0:00:08.8]} 43. Rd5
{[%clk 0:01:43.9]} 43... Rc7 {[%clk 0:00:08.4]} 44. Nxe3 {[%clk 0:01:16.9]}
44... Bxe3 {[%clk 0:00:03.6]} 45. Kxe3 {[%clk 0:01:17.1]} 45... Re4+ {[%clk
0:00:05.1]} 46. Kf3 {[%clk 0:01:16.6]} 46... c4 {[%clk 0:00:06.6]} 47. bxc4
{[%clk 0:01:16.8]} 47... Rexc4 {[%clk 0:00:06.2]} 48. Re1+ {[%clk 0:01:14.3]}
48... Kf7 {[%clk 0:00:06.7]} 49. Re3 {[%clk 0:01:11.4]} 49... Rc1 {[%clk
0:00:04.3]} 50. Red3 {[%clk 0:01:07.5]} 50... R7c2 {[%clk 0:00:04.1]} 51. Rd7+
{[%clk 0:01:07.4]} 51... Ke8 {[%clk 0:00:05]} 52. Rd8+ {[%clk 0:01:05.3]} 52...
Ke7 {[%clk 0:00:06.3]} 53. R8d7+ {[%clk 0:01:05.1]} 53... Ke8 {[%clk 0:00:07.6]}
54. Rg7 {[%clk 0:01:02.4]} 54... Rf1+ {[%clk 0:00:06.6]} 55. Ke3 {[%clk
0:01:03.6]} 55... Re1+ {[%clk 0:00:07.8]} 56. Kd4 {[%clk 0:01:04.6]} 56... Re4+
{[%clk 0:00:06.1]} 57. Kd5 {[%clk 0:01:05.1]} 57... Rc8 {[%clk 0:00:04]} 58.
Rxg6 {[%clk 0:01:05.1]} 58... Rd8+ {[%clk 0:00:04.7]} 59. Rd6 {[%clk 0:01:06.2]}
59... Rxd6+ {[%clk 0:00:05.2]} 60. Kxd6 {[%clk 0:01:07.4]} 60... Re2 {[%clk
0:00:06.8]} 61. a3 {[%clk 0:01:06.1]} 61... Kf7 {[%clk 0:00:05.5]} 62. Kc6
{[%clk 0:01:07.1]} 62... Rg2 {[%clk 0:00:05.3]} 63. Kb6 {[%clk 0:01:08]} 63...
Ke6 {[%clk 0:00:05.8]} 64. Kxa6 {[%clk 0:01:09]} 64... Rb2 {[%clk 0:00:06]} 65.
a4 {[%clk 0:01:10.1]} 65... Rb1 {[%clk 0:00:06.3]} 66. a5 {[%clk 0:01:11.5]}
66... Rb2 {[%clk 0:00:07.6]} 67. Ka7 {[%clk 0:01:12.8]} 67... Ke7 {[%clk
0:00:07.3]} 68. a6 {[%clk 0:01:14.2]} 68... Ke6 {[%clk 0:00:08.6]} 69. Ka8
{[%clk 0:01:14.8]} 69... Ke7 {[%clk 0:00:10.1]} 70. a7 {[%clk 0:01:08.4]} 70...
Ke6 {[%clk 0:00:10.9]} 71. Re3+ {[%clk 0:01:06.6]} 71... Kd6 {[%clk 0:00:09.3]}
72. Re8 {[%clk 0:01:04.5]} 72... Kc7 {[%clk 0:00:05.2]} 73. Re7+ {[%clk
0:01:04.2]} 73... Kc6 {[%clk 0:00:04.2]} 74. Re5 {[%clk 0:01:05.2]} 74... Rb3
{[%clk 0:00:04.3]} 75. Rxf5 {[%clk 0:01:06]} 75... Rxg3 {[%clk 0:00:05.3]} 76.
Rf6+ {[%clk 0:01:03.8]} 76... Kc7 {[%clk 0:00:05.7]} 77. Rf7+ {[%clk 0:01:05.2]}
77... Kc6 {[%clk 0:00:06.4]} 78. Rf8 {[%clk 0:01:06.4]} 78... Kc7 {[%clk
0:00:06.2]} 79. f5 {[%clk 0:01:06.4]} 79... Rf3 {[%clk 0:00:07.5]} 80. f6 {[%clk
0:01:07.7]} 80... Rf4 {[%clk 0:00:07.8]} 81. Rf7+ {[%clk 0:01:07.7]} 81... Kc8
{[%clk 0:00:07.7]} 82. Rf8+ {[%clk 0:01:08]} 82... Kc7 {[%clk 0:00:08]} 83. Rb8
{[%clk 0:01:03.1]} 83... Rxf6 {[%clk 0:00:07]} 84. Rb7+ {[%clk 0:01:04.5]} 84...
Kc8 {[%clk 0:00:08.3]} 85. Rb2 {[%clk 0:01:05]} 85... Kc7 {[%clk 0:00:07]} 86.
Rc2+ {[%clk 0:01:05.9]} 86... Kb6 {[%clk 0:00:07.5]} 87. Rb2+ {[%clk 0:01:04.8]}
87... Kc7 {[%clk 0:00:07.6]} 88. Rb5 {[%clk 0:00:53.6]} 88... Rf8+ {[%clk
0:00:04.9]} 89. Rb8 {[%clk 0:00:54.4]} 89... Rf4 {[%clk 0:00:04.7]} 90. Rb7+
{[%clk 0:00:53.5]} 90... Kc8 {[%clk 0:00:05.7]} 91. Rb5 {[%clk 0:00:52.3]} 91...
Kc7 {[%clk 0:00:04.2]} 92. Rc5+ {[%clk 0:00:47.5]} 92... Kb6 {[%clk 0:00:03.8]}
93. Rc8 {[%clk 0:00:48.4]} 93... Rf7 {[%clk 0:00:04.5]} 94. Rh8 {[%clk
0:00:46.5]} 94... Rxa7+ {[%clk 0:00:04.2]} 95. Kb8 {[%clk 0:00:47.7]} 95... Ra5
{[%clk 0:00:05.8]} 96. Rh6+ {[%clk 0:00:46.4]} 96... Kb5 {[%clk 0:00:04.2]} 97.
Rxh5+ {[%clk 0:00:47.7]} 1-0

[Event "*** Titled Tuesday Blitz"]
[Site "Chess.com"]
[Date "2018.07.03"]
[Round "5"]
[White "Fandorine"]
[Black "Paralinch"]
[Result "0-1"]
[WhiteElo "2742"]
[BlackElo "2801"]
[TimeControl "180+2"]
[EndTime "13:58:30 PDT"]
[Termination "Paralinch won by resignation"]

1. e4 {[%clk 0:03:01.9]} 1... c5 {[%clk 0:02:58]} 2. Nc3 {[%clk 0:03:00.4]} 2...
e6 {[%clk 0:02:58.3]} 3. Nge2 {[%clk 0:02:58.9]} 3... Nc6 {[%clk 0:02:58.8]} 4.
g3 {[%clk 0:02:57.8]} 4... d5 {[%clk 0:02:59]} 5. exd5 {[%clk 0:02:58.4]} 5...
exd5 {[%clk 0:03:00.9]} 6. d4 {[%clk 0:02:59.7]} 6... Bg4 {[%clk 0:02:57.5]} 7.
Qd3 {[%clk 0:02:48.5]} 7... Nb4 {[%clk 0:02:41.4]} 8. Qb5+ {[%clk 0:02:06.1]}
8... Bd7 {[%clk 0:02:38.8]} 9. Qxb7 {[%clk 0:02:07.4]} 9... Bc6 {[%clk
0:02:33.7]} 10. Qxc6+ {[%clk 0:02:08.8]} 10... Nxc6 {[%clk 0:02:34.3]} 11. Bg2
{[%clk 0:02:10.7]} 11... Nf6 {[%clk 0:02:33.9]} 12. O-O {[%clk 0:02:11.7]} 12...
Nxd4 {[%clk 0:02:31.9]} 13. Nxd4 {[%clk 0:02:12.4]} 13... cxd4 {[%clk
0:02:33.1]} 14. Nb5 {[%clk 0:02:08.8]} 14... Be7 {[%clk 0:02:25.2]} 15. Nxd4
{[%clk 0:02:06.2]} 15... O-O {[%clk 0:02:22.5]} 16. Rd1 {[%clk 0:02:05.8]} 16...
Bc5 {[%clk 0:02:19]} 17. c3 {[%clk 0:02:01.4]} 17... Re8 {[%clk 0:02:16.6]} 18.
a4 {[%clk 0:01:54.8]} 18... Bxd4 {[%clk 0:02:15.4]} 0-1

[Event "*** Titled Tuesday Blitz"]
[Site "Chess.com"]
[Date "2018.07.03"]
[Round "5"]
[White "Shant_Sargsyan"]
[Black "Last7Samurai"]
[Result "1-0"]
[WhiteElo "2895"]
[BlackElo "2611"]
[TimeControl "180+2"]
[EndTime "13:58:55 PDT"]
[Termination "Shant_Sargsyan won by resignation"]

1. d4 {[%clk 0:03:00.8]} 1... d5 {[%clk 0:02:59.6]} 2. Nf3 {[%clk 0:03:02.3]}
2... Nf6 {[%clk 0:03:00.2]} 3. c4 {[%clk 0:03:03.8]} 3... c6 {[%clk 0:03:01.2]}
4. Nc3 {[%clk 0:03:03.3]} 4... e6 {[%clk 0:03:02.2]} 5. Bg5 {[%clk 0:03:04.3]}
5... dxc4 {[%clk 0:03:03.2]} 6. a4 {[%clk 0:03:04.1]} 6... b5 {[%clk 0:03:03.7]}
7. axb5 {[%clk 0:03:02.3]} 7... cxb5 {[%clk 0:03:05.6]} 8. Nxb5 {[%clk
0:03:03.2]} 8... Qb6 {[%clk 0:03:06.2]} 9. Na3 {[%clk 0:02:59.2]} 9... Qxb2
{[%clk 0:02:54]} 10. Nxc4 {[%clk 0:02:58.3]} 10... Bb4+ {[%clk 0:02:52.8]} 11.
Bd2 {[%clk 0:02:53.7]} 11... Bxd2+ {[%clk 0:02:52.2]} 12. Nfxd2 {[%clk 0:02:47]}
12... Qxd4 {[%clk 0:02:37.3]} 13. Qa4+ {[%clk 0:02:48.1]} 13... Bd7 {[%clk
0:02:33.9]} 14. Qa3 {[%clk 0:02:49.1]} 14... Nc6 {[%clk 0:02:09.6]} 15. e3
{[%clk 0:02:40.7]} 15... Qg4 {[%clk 0:01:51.1]} 16. Be2 {[%clk 0:02:26.3]} 16...
Qxg2 {[%clk 0:01:44]} 17. Bf3 {[%clk 0:02:27.6]} 17... Qh3 {[%clk 0:01:43]} 18.
Nd6+ {[%clk 0:02:24]} 18... Kf8 {[%clk 0:01:42.2]} 19. Bxc6 {[%clk 0:02:17.7]}
1-0

[Event "*** Titled Tuesday Blitz"]
[Site "Chess.com"]
[Date "2018.07.03"]
[Round "5"]
[White "pedromartinez91"]
[Black "jacky72"]
[Result "1-0"]
[WhiteElo "2436"]
[BlackElo "2607"]
[TimeControl "180+2"]
[EndTime "13:59:20 PDT"]
[Termination "pedromartinez91 won by resignation"]

1. e4 {[%clk 0:03:01.5]} 1... e5 {[%clk 0:02:59.9]} 2. Nf3 {[%clk 0:03:00.9]}
2... Nc6 {[%clk 0:03:00.7]} 3. Bb5 {[%clk 0:03:01]} 3... a6 {[%clk 0:03:01.7]}
4. Ba4 {[%clk 0:03:02]} 4... d6 {[%clk 0:03:03.2]} 5. Bxc6+ {[%clk 0:02:59.2]}
5... bxc6 {[%clk 0:03:04]} 6. d4 {[%clk 0:03:00.2]} 6... exd4 {[%clk 0:03:05.3]}
7. Nxd4 {[%clk 0:03:02.1]} 7... c5 {[%clk 0:03:06.6]} 8. Nb3 {[%clk 0:03:02.8]}
8... g6 {[%clk 0:03:06.6]} 9. Na5 {[%clk 0:02:58.3]} 9... Bg7 {[%clk 0:03:05.6]}
10. O-O {[%clk 0:02:58.8]} 10... Ne7 {[%clk 0:03:06.4]} 11. Nc3 {[%clk
0:02:51.9]} 11... O-O {[%clk 0:03:07.3]} 12. Bg5 {[%clk 0:02:50.7]} 12... f6
{[%clk 0:03:03.4]} 13. Bh4 {[%clk 0:02:47]} 13... Be6 {[%clk 0:03:04.7]} 14. Nd5
{[%clk 0:02:39.8]} 14... Rb8 {[%clk 0:03:01.1]} 15. Nxe7+ {[%clk 0:02:37.3]}
15... Qxe7 {[%clk 0:03:01.9]} 16. Nc6 {[%clk 0:02:37.7]} 16... Qf7 {[%clk
0:03:01.6]} 17. Nxb8 {[%clk 0:02:38.4]} 17... Rxb8 {[%clk 0:03:03.5]} 18. b3
{[%clk 0:02:26.3]} 18... f5 {[%clk 0:03:03.7]} 19. exf5 {[%clk 0:02:26.1]} 19...
Bxf5 {[%clk 0:02:58.4]} 20. Rb1 {[%clk 0:02:23.1]} 20... d5 {[%clk 0:02:57.7]}
21. Re1 {[%clk 0:02:20]} 21... d4 {[%clk 0:02:49.7]} 22. Re7 {[%clk 0:02:15.7]}
22... Qd5 {[%clk 0:02:51]} 23. Qe2 {[%clk 0:02:15]} 23... h6 {[%clk 0:02:48.1]}
24. Re1 {[%clk 0:01:55.5]} 24... g5 {[%clk 0:02:43.4]} 25. Bg3 {[%clk
0:01:54.2]} 25... Rf8 {[%clk 0:02:43.4]} 26. Be5 {[%clk 0:01:43.9]} 26... Bxe5
{[%clk 0:02:39.5]} 27. Rxe5 {[%clk 0:01:45.8]} 27... Qd6 {[%clk 0:02:39.9]} 28.
Qc4+ {[%clk 0:01:41.5]} 28... Kg7 {[%clk 0:02:39.4]} 29. Qxc5 {[%clk 0:01:41.9]}
29... Qxc5 {[%clk 0:02:37.8]} 30. Rxc5 {[%clk 0:01:42.7]} 30... Rf7 {[%clk
0:02:39.7]} 31. Rd1 {[%clk 0:01:38.8]} 31... Rd7 {[%clk 0:02:40.2]} 32. Rxf5
{[%clk 0:01:38.8]} 1-0

[Event "*** Titled Tuesday Blitz"]
[Site "Chess.com"]
[Date "2018.07.03"]
[Round "5"]
[White "Firouzja2003"]
[Black "kuli4ik"]
[Result "0-1"]
[WhiteElo "2804"]
[BlackElo "2763"]
[TimeControl "180+2"]
[EndTime "13:59:38 PDT"]
[Termination "kuli4ik won on time"]

1. e4 {[%clk 0:03:00.9]} 1... e6 {[%clk 0:02:57.9]} 2. d4 {[%clk 0:02:50]} 2...
d5 {[%clk 0:02:58.4]} 3. Nc3 {[%clk 0:02:50.7]} 3... Be7 {[%clk 0:02:59.2]} 4.
Bd3 {[%clk 0:02:25]} 4... c5 {[%clk 0:02:58.3]} 5. dxc5 {[%clk 0:01:56.1]} 5...
Nf6 {[%clk 0:02:58.5]} 6. Qe2 {[%clk 0:01:51.3]} 6... d4 {[%clk 0:02:44.7]} 7.
Nb1 {[%clk 0:01:40.1]} 7... e5 {[%clk 0:02:43.9]} 8. Nf3 {[%clk 0:01:41]} 8...
Nc6 {[%clk 0:02:38]} 9. O-O {[%clk 0:01:38.5]} 9... O-O {[%clk 0:02:37.8]} 10.
a3 {[%clk 0:01:37.8]} 10... a5 {[%clk 0:02:38.3]} 11. Nbd2 {[%clk 0:01:36.5]}
11... Nd7 {[%clk 0:02:38.6]} 0-1